bitfinex/quotes_BTCUSD_20250903
["timestamp","ask_amount","ask_price","bid_price","bid_amount"]
[1756906725771,0.01359453,111450.0,111440.0,0.18146877]
[1756906725987,0.29591075,111450.0,111440.0,0.002]
[1756906726195,0.27656819,111450.0,111440.0,0.18146877]
[1756906726405,0.11645809,111450.0,111440.0,0.18246877]
[1756906726619,0.29591075,111450.0,111440.0,0.18246877]
[1756906726832,1.0899881,111450.0,111440.0,0.003]
[1756906727041,1.12031099,111450.0,111440.0,0.003]
[1756906727463,0.49478895,111450.0,111440.0,0.003]
[1756906727669,1.12031099,111450.0,111430.0,0.17948454]
[1756906727852,0.09488599,111440.0,111430.0,0.17948454]
[1756906727986,0.11631855,111440.0,111430.0,0.17948454]
[1756906728852,0.11125855,111440.0,111430.0,0.17948454]
[1756906729106,0.18416584,111450.0,111440.0,0.17946877]
[1756906729107,0.00113954,111450.0,111440.0,0.17946877]
[1756906729307,0.00013954,111450.0,111440.0,0.96499081]
[1756906730584,0.00013954,111450.0,111440.0,1.4659068]
[1756906730801,0.09757261,111500.0,111490.0,0.17938828]
[1756906731019,0.10127461,111500.0,111490.0,0.96487032]
[1756906731249,0.00853233,111500.0,111490.0,1.05678631]
[1756906731456,0.00014018,111500.0,111490.0,1.05578631]
[1756906731683,0.0002,111530.0,111520.0,0.17934002]
[1756906731890,0.0002,111530.0,111520.0,0.80486206]
[1756906732110,0.0002,111530.0,111520.0,1.16668988]
[1756906732324,0.0002,111530.0,111520.0,1.21568988]
[1756906732548,0.0006671,111530.0,111520.0,1.61568988]
[1756906733015,0.0006671,111530.0,111520.0,1.61672988]
[1756906733231,0.0016671,111530.0,111520.0,1.61864988]
[1756906734503,0.0016671,111530.0,111520.0,1.61764988]
[1756906734722,0.0006671,111530.0,111520.0,1.61564988]
[1756906735147,0.0016671,111530.0,111520.0,1.62060988]
[1756906735352,0.0026671,111530.0,111520.0,1.62860988]
[1756906735563,0.0026671,111530.0,111520.0,1.57860988]
[1756906735837,0.0026671,111530.0,111520.0,1.62860988]
[1756906736041,0.0026671,111530.0,111520.0,1.57860988]
[1756906736243,0.0006671,111530.0,111520.0,1.61544988]
[1756906736662,0.0016671,111530.0,111520.0,1.62044988]
[1756906736909,0.0026671,111530.0,111520.0,0.95284784]
[1756906737043,0.0026671,111530.0,111520.0,1.57836988]
[1756906737252,0.0026671,111530.0,111520.0,1.41856988]
[1756906737459,0.0026671,111530.0,111520.0,1.48641389]
[1756906738989,0.0077271,111530.0,111520.0,0.66034002]
[1756906739194,0.0077271,111530.0,111520.0,0.82006002]
[1756906739400,0.0026671,111530.0,111520.0,1.44558206]
[1756906739605,0.0026671,111530.0,111520.0,0.82006002]
[1756906739810,0.0026671,111530.0,111520.0,1.44558206]
[1756906740015,0.0026671,111530.0,111520.0,1.28586206]
[1756906740290,0.0077271,111530.0,111520.0,0.66034002]
[1756906740499,0.0077271,111530.0,111520.0,0.81990002]
[1756906740708,0.0026671,111530.0,111520.0,1.44542206]
[1756906740921,1e-08,111530.0,111520.0,1.92733805]
[1756906741335,1e-08,111530.0,111520.0,1.97733805]
[1756906743053,1e-08,111530.0,111520.0,2.00428815]
[1756906743266,1e-08,111530.0,111520.0,2.02522697]
[1756906743467,1e-08,111530.0,111520.0,1.39970493]
[1756906743678,1e-08,111530.0,111520.0,2.02522697]
[1756906743910,1e-08,111530.0,111520.0,2.29442697]
[1756906745190,1e-08,111530.0,111520.0,2.02522697]
[1756906748644,1e-08,111530.0,111520.0,1.97522697]
[1756906749013,1e-08,111530.0,111520.0,1.39954493]
[1756906749222,1e-08,111530.0,111520.0,0.77920611]
[1756906749435,0.00514001,111530.0,111520.0,0.93856611]
[1756906749655,0.00514001,111530.0,111520.0,0.84665012]
[1756906749867,0.00514001,111530.0,111520.0,0.75070002]
[1756906750295,0.00311001,111530.0,111520.0,1.37622206]
[1756906750507,1e-08,111530.0,111520.0,1.46813805]
[1756906750719,1e-08,111530.0,111520.0,1.73733805]
[1756906750930,0.00311001,111530.0,111520.0,1.73733805]
[1756906751148,1e-08,111530.0,111520.0,1.46813805]
[1756906751359,1e-08,111530.0,111520.0,1.80813805]
[1756906751588,1e-08,111530.0,111520.0,1.87907687]
[1756906751795,1e-08,111530.0,111520.0,1.92907687]
[1756906752657,1e-08,111530.0,111520.0,1.87907687]
[1756906752863,1e-08,111530.0,111520.0,1.92907687]
[1756906757118,1e-08,111530.0,111520.0,1.30355483]
[1756906757317,1e-08,111530.0,111520.0,1.92907687]
[1756906757534,1e-08,111530.0,111520.0,2.17748797]
[1756906758699,1e-08,111530.0,111520.0,2.17928797]
[1756906760014,1e-08,111530.0,111520.0,2.17956797]
[1756906760213,0.00311,111550.0,111540.0,0.17930787]
[1756906760411,0.00014007,111550.0,111540.0,1.373677]
[1756906760820,0.00014007,111550.0,111540.0,1.40062317]
[1756906761027,0.00014007,111550.0,111540.0,1.64102317]
[1756906761028,0.00528007,111550.0,111540.0,1.64102317]
[1756906761261,0.00528007,111550.0,111540.0,1.80062317]
[1756906761608,0.00528007,111550.0,111540.0,1.8410118]
[1756906761735,0.00628007,111550.0,111540.0,0.97307866]
[1756906761940,0.00628007,111550.0,111540.0,0.94613249]
[1756906762150,0.00628007,111550.0,111540.0,0.95241256]
[1756906762426,0.00628007,111550.0,111540.0,0.86041657]
[1756906762627,0.00628007,111550.0,111540.0,0.58830787]
[1756906762830,0.00628007,111550.0,111540.0,0.74794787]
[1756906763732,1.17484099,111550.0,111540.0,0.009]
[1756906763917,1.20046832,111550.0,111540.0,0.00575]
[1756906764157,0.35060625,111550.0,111540.0,0.00575]
[1756906764376,1.20046832,111550.0,111540.0,0.00575]
[1756906764559,0.32653518,111550.0,111540.0,0.00575]
[1756906764760,1.26938832,111550.0,111540.0,0.00575]
[1756906764990,1.65339821,111550.0,111540.0,0.003]
[1756906765237,1.81299821,111550.0,111540.0,0.003]
[1756906765473,1.81399821,111550.0,111540.0,0.004]
[1756906765705,1.81399821,111550.0,111540.0,0.001]
[1756906765706,0.78848876,111550.0,111540.0,0.001]
[1756906765920,0.44054732,111550.0,111540.0,0.001]
[1756906766694,0.416394,111550.0,111540.0,0.001]
[1756906766888,0.44054732,111550.0,111540.0,0.001]
[1756906767109,0.416394,111550.0,111540.0,0.001]
[1756906767410,0.17930787,111540.0,111530.0,0.17932341]
[1756906767620,0.27380186,111550.0,111540.0,0.17930787]
[1756906767777,0.17930787,111540.0,111530.0,0.17932341]
[1756906767974,0.09394599,111540.0,111530.0,0.17932341]
[1756906768180,0.09705599,111540.0,111530.0,0.17932341]
[1756906768855,0.09805599,111540.0,111530.0,0.18132341]
[1756906769269,0.00614,111540.0,111530.0,0.18132341]
[1756906769908,0.001,111540.0,111530.0,1.05525655]
[1756906770132,0.001,111540.0,111530.0,1.49249254]
[1756906770579,0.001,111540.0,111530.0,1.64875254]
[1756906770844,0.00014007,111550.0,111540.0,0.17930787]
[1756906771059,0.00014007,111550.0,111540.0,1.488377]
[1756906771288,0.00014007,111550.0,111540.0,1.96141582]
[1756906772163,1e-08,111560.0,111550.0,0.54023061]
[1756906772399,1e-08,111560.0,111550.0,1.83773974]
[1756906772622,1e-08,111560.0,111550.0,0.9659066]
[1756906773041,1e-08,111560.0,111550.0,0.99284767]
[1756906773478,1e-08,111570.0,111560.0,0.25021454]
[1756906773709,1e-08,111570.0,111560.0,0.34535053]
[1756906773940,1e-08,111570.0,111560.0,1.62138367]
[1756906774179,1e-08,111570.0,111560.0,0.69423053]
[1756906774418,0.02856001,111570.0,111560.0,0.4]
[1756906774674,0.22860069,111570.0,111560.0,0.4]
[1756906774907,0.21678264,111570.0,111550.0,0.16544]
[1756906775137,0.00311,111560.0,111550.0,0.17929179]
[1756906775366,0.00514,111560.0,111540.0,0.35375862]
[1756906775582,0.87596314,111560.0,111550.0,0.17929179]
[1756906775800,1.05623886,111560.0,111550.0,0.009]
[1756906776246,1.05934886,111560.0,111550.0,0.009]
[1756906776666,1.08276886,111560.0,111550.0,0.009]
[1756906776872,1.08376886,111560.0,111550.0,0.016]
[1756906777301,0.20983572,111560.0,111550.0,0.016]
[1756906777517,1.08376886,111560.0,111550.0,0.016]
[1756906777724,1.08476886,111560.0,111550.0,0.021]
[1756906777930,1.08476886,111560.0,111550.0,0.20029179]
[1756906778140,0.20983572,111560.0,111550.0,0.016]
[1756906778345,1.08376886,111560.0,111550.0,0.016]
[1756906778557,1.08176886,111560.0,111540.0,0.17943193]
[1756906778813,0.00298,111550.0,111540.0,0.17943193]
[1756906779025,0.18424179,111550.0,111540.0,0.17943193]
[1756906779658,0.18424179,111550.0,111540.0,0.17943336]
[1756906779876,0.00495,111550.0,111540.0,0.17943336]
[1756906780139,0.00495,111550.0,111540.0,0.18043336]
[1756906780365,0.00398,111560.0,111550.0,0.17929179]
[1756906780820,0.18522728,111560.0,111540.0,0.00112549]
[1756906781032,0.18227179,111550.0,111540.0,0.18243334]
[1756906781244,0.00495,111550.0,111540.0,0.18243334]
[1756906781456,0.001,111560.0,111550.0,0.17929179]
[1756906781672,0.00197,111560.0,111550.0,0.34417179]
[1756906781875,0.00495,111560.0,111550.0,0.34417179]
[1756906782084,1e-08,111570.0,111560.0,0.17927572]
[1756906782301,0.27612565,111570.0,111560.0,0.17927572]
[1756906782511,0.97079914,111570.0,111560.0,0.17927572]
[1756906782697,0.00495001,111570.0,111560.0,0.17927572]
[1756906782953,0.00495001,111570.0,111550.0,0.34617179]
[1756906783160,0.00495001,111570.0,111560.0,0.17927572]
[1756906783776,0.00595001,111570.0,111560.0,0.18327572]
[1756906784158,1.0591428,111570.0,111560.0,0.004]
[1756906784302,1.15105879,111570.0,111560.0,0.004]
[1756906784517,1.31565879,111570.0,111560.0,0.007]
[1756906784725,1.67942879,111570.0,111560.0,0.007]
[1756906784931,0.83106158,111570.0,111560.0,0.007]
[1756906785169,1.70499472,111570.0,111560.0,0.007]
[1756906785377,0.80549565,111570.0,111560.0,0.007]
[1756906785590,1.67938879,111570.0,111560.0,0.007]
[1756906785785,1.65561879,111570.0,111560.0,0.007]
[1756906786229,1.65461879,111570.0,111560.0,0.003]
[1756906786713,0.34495001,111570.0,111560.0,0.18327572]
[1756906786924,0.00197001,111570.0,111560.0,0.18027572]
[1756906787130,0.00197001,111570.0,111560.0,0.34491572]
[1756906787747,0.00197001,111570.0,111560.0,0.34702572]
[1756906787748,1e-08,111570.0,111560.0,0.34702572]
[1756906788167,1e-08,111570.0,111560.0,0.41594572]
[1756906788376,1e-08,111570.0,111560.0,0.41694572]
[1756906788816,1e-08,111570.0,111560.0,0.81582572]
[1756906789246,0.00100001,111570.0,111560.0,0.81782572]
[1756906789661,1e-08,111570.0,111560.0,0.81582572]
[1756906790089,0.00100001,111570.0,111560.0,0.82182572]
[1756906790319,0.00100001,111570.0,111560.0,0.82082572]
[1756906790709,0.00100001,111570.0,111560.0,0.82382572]
[1756906790911,0.00100001,111570.0,111560.0,0.82171572]
[1756906791121,0.00100001,111570.0,111560.0,0.65719572]
[1756906791330,0.00297001,111570.0,111560.0,0.81839572]
[1756906791530,0.00595001,111570.0,111560.0,0.81839572]
[1756906791665,0.00297001,111570.0,111560.0,0.81839572]
[1756906791871,0.00100001,111570.0,111560.0,0.82050572]
[1756906792111,0.00100001,111570.0,111560.0,0.82450572]
[1756906792313,0.00200001,111570.0,111560.0,0.82450572]
[1756906792920,0.00200001,111570.0,111560.0,0.82769572]
[1756906793633,0.00200001,111570.0,111560.0,0.82450572]
[1756906794500,0.78347934,111590.0,111580.0,0.17924359]
[1756906794707,0.78347934,111590.0,111580.0,0.34312359]
[1756906794708,0.09489599,111590.0,111580.0,0.34312359]
[1756906794940,0.09191599,111590.0,111580.0,0.34312359]
[1756906795257,0.00298,111600.0,111590.0,0.17922752]
[1756906795468,0.3402,111610.0,111600.0,0.17921146]
[1756906795829,0.43720601,111610.0,111600.0,0.17921146]
[1756906796060,1.49033456,111610.0,111600.0,0.17921146]
[1756906796245,0.87393314,111600.0,111590.0,0.34198676]
[1756906796452,0.61640142,111610.0,111600.0,0.17921146]
[1756906796655,1.49033456,111610.0,111600.0,0.17921146]
[1756906797304,1.31113915,111610.0,111600.0,0.17921146]
[1756906797743,0.00529002,111610.0,111600.0,0.17921146]
[1756906797954,0.00231002,111610.0,111600.0,0.17921146]
[1756906798151,0.00231002,111610.0,111600.0,0.18021146]
[1756906798353,0.00529002,111610.0,111600.0,0.18021146]
[1756906798596,1.05841857,111610.0,111600.0,0.34373146]
[1756906798814,1.15033456,111610.0,111600.0,0.401]
[1756906799021,0.17921146,111600.0,111580.0,0.18820576]
[1756906799242,1.14506059,111600.0,111590.0,0.17922752]
[1756906799460,0.00197,111600.0,111590.0,0.17922752]
[1756906799879,0.00495,111600.0,111590.0,0.17922752]
[1756906800088,1.39346857,111610.0,111600.0,0.17921146]
[1756906800295,1.31113915,111610.0,111600.0,0.17921146]
[1756906800509,0.34529002,111610.0,111600.0,0.17921146]
[1756906800725,0.00034002,111610.0,111600.0,0.34460146]
[1756906801158,0.00034002,111610.0,111600.0,0.34779146]
[1756906801376,0.00034002,111610.0,111600.0,1.38256059]
[1756906801846,0.00034002,111610.0,111600.0,1.40949301]
[1756906802929,0.00034002,111610.0,111600.0,1.80949301]
[1756906803136,0.00034002,111610.0,111600.0,1.88343183]
[1756906803345,0.41652631,111650.0,111640.0,0.17883964]
[1756906803346,0.07354631,111650.0,111640.0,0.17883964]
[1756906803556,0.07401287,111650.0,111640.0,0.34203964]
[1756906803766,0.07401287,111650.0,111640.0,0.34414964]
[1756906803977,0.07401287,111650.0,111640.0,0.74406964]
[1756906804182,0.00046656,111650.0,111640.0,0.74406964]
[1756906804401,0.00046656,111650.0,111640.0,0.81298964]
[1756906804611,0.00046656,111650.0,111640.0,1.78202877]
[1756906804821,0.00046656,111650.0,111640.0,0.90809563]
[1756906805036,0.00046656,111650.0,111640.0,1.79121393]
[1756906805296,0.00046656,111650.0,111640.0,0.91728079]
[1756906805507,0.00046656,111650.0,111640.0,0.90809563]
[1756906806337,0.00046656,111650.0,111640.0,1.78202877]
[1756906806544,0.00046656,111650.0,111640.0,1.61890877]
[1756906806745,0.00046656,111650.0,111640.0,0.90789563]
[1756906806954,0.00046656,111650.0,111640.0,0.94742069]
[1756906807366,0.00046656,111650.0,111640.0,0.95242069]
[1756906808008,0.00046656,111650.0,111640.0,1.82635383]
[1756906808584,0.00046656,111650.0,111640.0,1.89729265]
[1756906808816,0.00146656,111650.0,111640.0,1.90229265]
[1756906809020,0.00146656,111650.0,111640.0,1.92921293]
[1756906809464,0.00146656,111650.0,111640.0,1.92889293]
[1756906809692,0.00146656,111650.0,111640.0,0.81823097]
[1756906809924,0.00146656,111650.0,111640.0,0.98399097]
[1756906810156,0.00146656,111650.0,111640.0,0.81823097]
[1756906810375,0.00146656,111650.0,111640.0,0.98083097]
[1756906810598,0.00146656,111650.0,111640.0,0.95176069]
[1756906811494,0.00146656,111650.0,111640.0,0.95388069]
[1756906811742,0.00146656,111650.0,111640.0,0.95176069]
[1756906811965,0.00654656,111650.0,111640.0,0.6972847]
[1756906812178,0.00654656,111650.0,111640.0,0.8596847]
[1756906812601,0.00654656,111650.0,111640.0,0.6972847]
[1756906812786,0.00654656,111650.0,111640.0,0.82015964]
[1756906813160,0.00654656,111650.0,111640.0,0.75123964]
[1756906813382,0.18567777,111650.0,111640.0,0.58914725]
[1756906813546,0.00349656,111650.0,111640.0,0.75142725]
[1756906813747,0.00146656,111650.0,111640.0,0.75142725]
[1756906813953,0.00146656,111650.0,111640.0,0.75354725]
[1756906814571,0.00146656,111650.0,111640.0,0.75142725]
[1756906815175,0.00146656,111650.0,111640.0,1.02062725]
[1756906815374,0.00654656,111650.0,111640.0,1.02046725]
[1756906815584,0.18567777,111650.0,111640.0,1.02046725]
[1756906815780,0.00654656,111650.0,111640.0,1.02046725]
[1756906816202,0.00349656,111650.0,111640.0,1.02046725]
[1756906816433,0.00146656,111650.0,111640.0,1.02258725]
[1756906817092,0.00146656,111650.0,111640.0,1.98843638]
[1756906817492,0.00146656,111650.0,111640.0,1.74051055]
[1756906817716,0.00146656,111650.0,111640.0,1.54224937]
[1756906818429,0.0002,111670.0,111640.0,1.93224937]
[1756906818631,0.00033994,111670.0,111660.0,0.80192248]
[1756906818862,0.00033994,111670.0,111660.0,1.05579847]
[1756906819071,0.00033994,111670.0,111660.0,1.09884075]
[1756906819285,0.00033994,111670.0,111660.0,1.57297957]
[1756906819493,0.00033994,111670.0,111660.0,1.57289957]
[1756906819926,0.00033994,111670.0,111660.0,0.95009226]
[1756906820164,0.00033994,111670.0,111660.0,1.57589957]
[1756906821243,0.00033994,111670.0,111660.0,1.57889957]
[1756906821680,0.00033994,111670.0,111660.0,1.56949957]
[1756906821887,0.00033994,111670.0,111660.0,1.57449957]
[1756906822096,0.00033994,111670.0,111660.0,1.57769957]
[1756906822310,0.00133994,111670.0,111660.0,1.58469957]
[1756906822514,1e-08,111670.0,111660.0,1.92469957]
[1756906822727,1e-08,111670.0,111660.0,1.92828831]
[1756906822934,1e-08,111670.0,111660.0,1.76660831]
[1756906823154,1e-08,111670.0,111660.0,2.19736831]
[1756906823586,1e-08,111670.0,111660.0,1.52816831]
[1756906823801,8e-05,111680.0,111670.0,0.64003795]
[1756906824032,8e-05,111680.0,111670.0,0.68195394]
[1756906824247,8e-05,111680.0,111670.0,1.29382243]
[1756906824519,0.00516,111680.0,111670.0,0.83257512]
[1756906824730,0.00516,111680.0,111670.0,0.57909913]
[1756906824934,0.00516,111680.0,111670.0,0.74069913]
[1756906825138,0.00516,111680.0,111670.0,0.74269913]
[1756906825349,8e-05,111680.0,111670.0,0.74269913]
[1756906825577,8e-05,111680.0,111670.0,1.37162644]
[1756906825789,8e-05,111680.0,111670.0,1.46354243]
[1756906826002,8e-05,111680.0,111670.0,0.84073512]
[1756906826219,8e-05,111680.0,111670.0,1.46354243]
[1756906826648,0.00211,111680.0,111670.0,0.67701512]
[1756906826861,0.00516,111680.0,111670.0,0.74653913]
[1756906827077,0.00516,111680.0,111670.0,0.58509913]
[1756906827282,0.00516,111680.0,111670.0,0.74649913]
[1756906827500,0.00516,111680.0,111670.0,0.58509913]
[1756906827717,0.00516,111680.0,111670.0,0.74645913]
[1756906827937,0.00516,111680.0,111670.0,0.74245913]
[1756906828165,0.00516,111680.0,111670.0,0.74045913]
[1756906828420,0.00516,111680.0,111670.0,0.74345913]
[1756906828633,0.00516,111680.0,111670.0,0.74645913]
[1756906828857,0.89896639,111680.0,111670.0,0.003]
[1756906829085,0.92270639,111680.0,111670.0,0.17909913]
[1756906829312,0.92270639,111680.0,111670.0,0.18009913]
[1756906829313,0.12917314,111680.0,111670.0,0.18009913]
[1756906829548,0.12917314,111680.0,111670.0,0.18209913]
[1756906829775,0.93106354,111680.0,111670.0,0.003]
[1756906829990,0.93106482,111680.0,111670.0,0.003]
[1756906830206,0.93106482,111680.0,111670.0,0.001]
[1756906830660,1.29032551,111680.0,111670.0,0.001]
[1756906830909,1.47459478,111680.0,111670.0,0.001]
[1756906831114,0.17909913,111670.0,111660.0,0.17911386]
[1756906831331,0.10535442,111670.0,111660.0,0.17911386]
[1756906831561,0.00508,111670.0,111660.0,0.17911386]
[1756906831793,0.00508,111670.0,111650.0,0.74950578]
[1756906831998,0.00508,111670.0,111650.0,0.74954578]
[1756906831999,0.89585243,111670.0,111650.0,0.74954578]
[1756906832247,0.00305,111660.0,111650.0,0.74954578]
[1756906832657,0.00508,111660.0,111650.0,0.74954578]
[1756906832894,0.00305,111670.0,111660.0,0.17911517]
[1756906833108,0.01344666,111670.0,111660.0,0.18011517]
[1756906833329,0.01544666,111670.0,111660.0,0.18011517]
[1756906833560,0.01544666,111670.0,111660.0,0.17911517]
[1756906833938,0.002,111670.0,111660.0,0.17911517]
[1756906834123,0.002,111670.0,111660.0,0.80404248]
[1756906834327,0.002,111670.0,111660.0,0.18123517]
[1756906834892,8e-05,111680.0,111670.0,0.17909913]
[1756906835036,8e-05,111680.0,111670.0,0.34045913]
[1756906835237,0.00211,111680.0,111670.0,0.34045913]
[1756906835537,0.00211,111680.0,111670.0,0.74045913]
[1756906835738,8e-05,111680.0,111670.0,0.74045913]
[1756906835944,0.00516,111680.0,111670.0,0.57909913]
[1756906836186,0.27615908,111680.0,111670.0,0.4]
[1756906836388,0.92662023,111680.0,111670.0,0.4]
[1756906837024,0.30581292,111680.0,111670.0,0.17909913]
[1756906837235,0.92862023,111680.0,111670.0,0.17909913]
[1756906837477,0.12672983,111680.0,111670.0,0.17909913]
[1756906837692,0.03481384,111680.0,111670.0,0.17909913]
[1756906838395,0.01552934,111680.0,111670.0,0.17909913]
[1756906838624,0.00208,111680.0,111670.0,0.18121913]
[1756906839438,0.00208,111680.0,111670.0,0.89914243]
[1756906839901,0.00208,111680.0,111670.0,0.94914243]
[1756906840525,0.0002,111690.0,111670.0,0.94914243]
[1756906840759,0.0002,111690.0,111680.0,1.10820639]
[1756906840972,0.0002,111690.0,111680.0,1.50820639]
[1756906840973,1e-08,111690.0,111680.0,1.50820639]
[1756906841192,1e-08,111690.0,111680.0,1.51023639]
[1756906841408,0.07354631,111730.0,111720.0,0.17901897]
[1756906841624,0.08190698,111730.0,111720.0,0.34005897]
[1756906841831,0.00836067,111730.0,111720.0,0.34005897]
[1756906842050,0.00836067,111730.0,111720.0,0.74208897]
[1756906842274,0.00309,111740.0,111730.0,0.17900295]
[1756906842486,0.00309,111730.0,111720.0,0.57901897]
[1756906842690,0.00509,111730.0,111720.0,0.73997897]
[1756906843110,0.00509,111730.0,111720.0,0.57901897]
[1756906843351,0.00509,111730.0,111720.0,0.73997897]
[1756906843564,0.00509,111730.0,111720.0,0.74001897]
[1756906843833,0.00509,111730.0,111720.0,0.74197897]
[1756906844049,0.00509,111730.0,111720.0,0.58301897]
[1756906844253,0.00509,111730.0,111720.0,0.74401897]
[1756906844460,0.00509,111730.0,111720.0,0.58301897]
[1756906844675,0.80690026,111730.0,111720.0,0.74205897]
[1756906844888,0.80690026,111730.0,111720.0,0.402]
[1756906845519,0.89881625,111730.0,111720.0,0.002]
[1756906845733,1.27900294,111730.0,111720.0,0.002]
[1756906845938,0.179035,111710.0,111700.0,0.34005011]
[1756906846362,0.17905102,111700.0,111690.0,0.14238631]
[1756906846583,0.80694833,111700.0,111690.0,0.4]
[1756906846795,0.80694833,111700.0,111690.0,0.561]
[1756906846796,0.89886432,111700.0,111690.0,0.561]
[1756906846976,0.09700599,111700.0,111690.0,0.4]
[1756906847215,0.89886432,111700.0,111690.0,0.57906706]
[1756906847398,0.7198133,111700.0,111690.0,0.57906706]
[1756906847592,0.27605701,111700.0,111690.0,0.57906706]
[1756906847874,0.89886432,111700.0,111690.0,0.4]
[1756906848706,0.89886432,111700.0,111680.0,0.34008272]
[1756906848921,0.80187437,111690.0,111680.0,0.34008272]
[1756906849126,0.18415706,111690.0,111680.0,0.34008272]
[1756906849301,0.89686432,111700.0,111680.0,0.34008272]
[1756906849536,0.18415706,111690.0,111680.0,0.34008272]
[1756906849715,0.18415706,111690.0,111680.0,0.161]
[1756906849949,0.00509,111690.0,111680.0,0.34008309]
[1756906850179,0.00509,111690.0,111680.0,0.34208309]
[1756906850399,0.80696437,111690.0,111680.0,0.34208309]
[1756906850617,0.80696437,111690.0,111680.0,0.74308309]
[1756906850822,0.00509,111690.0,111680.0,0.74108309]
[1756906851058,0.80696437,111690.0,111680.0,0.57908309]
[1756906851297,0.80696437,111690.0,111680.0,0.74192309]
[1756906851520,0.80696437,111690.0,111680.0,0.74292309]
[1756906851742,0.62789731,111690.0,111680.0,0.74292309]
[1756906851946,0.27096701,111700.0,111690.0,0.17906706]
[1756906851947,0.2709686,111700.0,111690.0,0.17906706]
[1756906852158,0.09500599,111700.0,111690.0,0.17906706]
[1756906852339,0.89886432,111700.0,111690.0,0.17906706]
[1756906852769,0.89886432,111700.0,111680.0,0.56384]
[1756906852770,0.17906706,111690.0,111680.0,0.56384]
[1756906852986,0.80496437,111690.0,111680.0,0.73992309]
[1756906853394,0.00509,111690.0,111680.0,0.73992309]
[1756906853598,0.80696437,111690.0,111680.0,0.33992309]
[1756906853817,0.00509,111690.0,111680.0,0.17908309]
[1756906854041,0.17908309,111680.0,111660.0,0.4]
[1756906854234,0.7178133,111680.0,111660.0,0.33970496]
[1756906854439,0.50469,111690.0,111680.0,0.17908309]
[1756906854655,0.43391599,111690.0,111680.0,0.33968309]
[1756906854870,0.61607305,111690.0,111680.0,0.33968309]
[1756906855070,1.23888036,111690.0,111680.0,0.1606]
[1756906855272,1.23888036,111690.0,111670.0,0.33965868]
[1756906855507,0.62589731,111680.0,111670.0,0.33965868]
[1756906856052,0.62789731,111680.0,111670.0,0.33965868]
[1756906856290,0.89889639,111680.0,111670.0,0.17909913]
[1756906856708,1.05941639,111680.0,111670.0,0.17909913]
[1756906857126,0.17911517,111660.0,111650.0,0.17905982]
[1756906857334,1.05435847,111660.0,111650.0,0.00013994]
[1756906857537,1.05435847,111660.0,111650.0,0.17927115]
[1756906857538,0.8803333,111660.0,111650.0,0.17927115]
[1756906857953,0.89475922,111680.0,111660.0,0.1791004]
[1756906858173,0.09191599,111670.0,111660.0,0.3395804]
[1756906858392,0.09700599,111670.0,111660.0,0.3395804]
[1756906858651,0.7198133,111670.0,111660.0,0.3395804]
[1756906858896,0.7198133,111670.0,111650.0,0.00013994]
[1756906858897,0.17911517,111660.0,111650.0,0.00013994]
[1756906859157,1.05423847,111660.0,111650.0,0.00013994]
[1756906859384,1.08026729,111660.0,111650.0,0.00013994]
[1756906859615,0.91986729,111660.0,111650.0,0.18027115]
[1756906859829,1.08026729,111660.0,111650.0,0.00113994]
[1756906860037,0.45845998,111660.0,111650.0,0.17927115]
[1756906860253,0.45845998,111660.0,111650.0,0.00013994]
[1756906860254,1.08126729,111660.0,111650.0,0.00013994]
[1756906860462,1.42026729,111660.0,111650.0,0.00013994]
[1756906860668,0.63705998,111660.0,111650.0,0.17927115]
[1756906860866,1.25986729,111660.0,111650.0,0.17927115]
[1756906861072,1.42114729,111660.0,111650.0,0.17927115]
[1756906861277,1.24203212,111660.0,111650.0,0.17927115]
[1756906861492,0.79833998,111660.0,111650.0,0.17927115]
[1756906861697,0.25323599,111660.0,111650.0,0.18130115]
[1756906861916,0.25223599,111660.0,111650.0,0.18130115]
[1756906862135,0.25223599,111660.0,111650.0,0.17927115]
[1756906862373,1.05924847,111660.0,111650.0,0.17927115]
[1756906862590,1.42018729,111660.0,111650.0,0.00013994]
[1756906862822,1.25986729,111660.0,111650.0,0.17927115]
[1756906863046,0.79729998,111660.0,111650.0,0.17927115]
[1756906863268,1.2200533,111660.0,111650.0,0.17907115]
[1756906863461,0.09191599,111660.0,111650.0,0.34134115]
[1756906863715,0.09291599,111660.0,111650.0,0.34134115]
[1756906864170,0.09191599,111660.0,111650.0,0.34134115]
[1756906864601,0.09391599,111660.0,111650.0,0.33931115]
[1756906864842,0.06884,111680.0,111670.0,0.17909913]
[1756906865063,0.09391599,111680.0,111670.0,0.17909913]
[1756906865522,0.43391599,111680.0,111670.0,0.17909913]
[1756906865749,0.43700599,111680.0,111670.0,0.17909913]
[1756906866390,0.59403599,111680.0,111670.0,0.17909913]
[1756906866568,0.59712599,111680.0,111670.0,0.17909913]
[1756906866821,0.09191599,111680.0,111670.0,0.34116913]
[1756906867031,0.59098116,111700.0,111690.0,0.17906706]
[1756906867283,0.09700599,111700.0,111690.0,0.17906706]
[1756906867530,0.25700599,111700.0,111690.0,0.17906706]
[1756906868404,0.25714585,111700.0,111690.0,0.17906706]
[1756906868642,0.89900418,111700.0,111690.0,0.17906706]
[1756906868865,1.05888418,111700.0,111680.0,0.3389204]
[1756906869088,0.43398687,111700.0,111680.0,0.1790804]
[1756906869361,0.17908309,111680.0,111670.0,0.73897913]
[1756906869594,0.78783731,111680.0,111670.0,0.57909913]
[1756906869808,0.16503,111680.0,111670.0,0.57909913]
[1756906870234,0.00515,111680.0,111670.0,0.17909913]
[1756906870693,0.27098305,111690.0,111680.0,0.17908309]
[1756906870871,0.43597305,111690.0,111680.0,0.17908309]
[1756906871090,0.17908309,111680.0,111670.0,0.17909913]
[1756906871319,0.89693639,111680.0,111670.0,0.17909913]
[1756906871534,0.17911517,111660.0,111650.0,0.20605681]
[1756906871753,0.96172248,111660.0,111650.0,0.20605681]
[1756906871974,0.96687248,111660.0,111650.0,0.17913121]
[1756906872187,0.16495,111660.0,111650.0,0.17913121]
[1756906872406,0.16182,111660.0,111650.0,0.17913121]
[1756906872624,1.05878847,111660.0,111640.0,0.18810381]
[1756906872844,1.05892825,111660.0,111650.0,0.17913121]
[1756906873839,0.25387577,111660.0,111650.0,0.17913121]
[1756906874054,0.71688308,111660.0,111650.0,0.18013121]
[1756906874471,1.05884825,111660.0,111650.0,0.18113121]
[1756906874681,0.87672308,111660.0,111650.0,0.18013121]
[1756906875131,0.00013978,111660.0,111650.0,0.18218121]
[1756906875335,0.00013978,111660.0,111650.0,0.18530121]
[1756906875752,0.00013978,111660.0,111650.0,0.80810852]
[1756906876452,0.00013978,111660.0,111650.0,0.25414121]
[1756906876671,0.00013978,111660.0,111650.0,0.81082121]
[1756906876899,0.00013978,111660.0,111650.0,0.81394121]
[1756906877322,0.00013978,111660.0,111650.0,1.43774852]